Cogmind - Beta 15 @@@ ROGUE MODE // 2025.06.27 @ 15:39:06 Player: 7604 Result: Self-destructed Performance ------------- Evolutions (4) 2000 Regions Visited (9) 1800 Robots Destroyed (119) 595 Value Destroyed (5287) 5287 Prototype IDs (13) 260 Alien Tech Used (0) 0 Bonus (1109) 1109 TOTAL SCORE: 11051 Bonus ------- High Alert Combat Kills 375 Follower Combat Kills 334 Entered Garrisons 400 Cogmind --------- Core Integrity 653/850 Matter 275/300 Energy 527/527 System Corruption 3% Temperature Warm (193) Movement Hovering (134) Location -6/Garrison Parts ------- > --- POWER (2) -------- Multi-Deuterium Engine > --- PROPULSION (5) --- Hovering Gravmag Exoskeleton > --- UTILITY (5) ------ High-capacity Storage Unit Structural Scanner Seismic Detector > --- WEAPON (3) ------- Heavy Plasma Cannon Hvy. Ballistic Mag Construct/C > --- INVENTORY (20) --- Light Treads Improved Medium Treads Improved Heat Sink Improved Heat Sink Advanced Heat Sink Cooling System IFF Parser Seismic Detector ECM Suite Improved Utility Shielding Improved Utility Shielding Improved Light Armor Plating Reactive Plating Thermal Defense Suite EM Shield Makeshift System Restoration Module Minigun Flak Gun Magnetic Acceleration Cannon Remote Datajack Peak State ------------ > --- POWER ------------ Multi-Deuterium Engine > --- PROPULSION ------- Hovering Gravmag Exoskeleton > --- UTILITY ---------- Scrap Engine High-capacity Storage Unit Structural Scanner Seismic Detector > --- WEAPON ----------- Heavy Plasma Cannon Hvy. Ballistic Mag Construct/C > --- INVENTORY -------- Light Treads Improved Medium Treads Improved Heat Sink Improved Heat Sink Advanced Heat Sink Cooling System IFF Parser Seismic Detector ECM Suite Improved Utility Shielding Improved Utility Shielding Improved Light Armor Plating Reactive Plating Thermal Defense Suite EM Shield Makeshift System Restoration Module Minigun Flak Gun Magnetic Acceleration Cannon Remote Datajack [Rating: 74] Favorites ----------- Power Constructs Engine Constructs Power Core Light Nuclear Core Propulsion Light Treads Treads Light Treads Leg Aluminum Leg Hover Unit Constructs Utility High-capacity Storage Unit Device Seismic Detector Storage High-capacity Storage Unit Protection Hardened Medium Armor Plating Weapon Subdweller Beam Cannon Energy Gun Beam Rifle Energy Cannon Subdweller Beam Cannon Ballistic Gun Assault Rifle Ballistic Cannon Constructs Launcher Grenade Launcher Special Weapon Mining Laser Impact Weapon Great Maul Build | -11 -10 -10 -8 -8 -8 -6 -6 -6 -6 ------- Run | Yrd Mat Sub Mat Sto Rec Fac Gar Fac Gar Slots Evolved 8 | . . . 4 . . 4 . . . Power 1 | . . . . . . 1 . . . Propulsion 3 | . . . 3 . . . . . . Utility 3 | . . . 1 . . 2 . . . Weapon 1 | . . . . . . 1 . . . Parts Attached 67 | 2 12 10 4 20 4 8 2 5 . Power 6 | . 2 2 . 2 . . . . . Engine 5 | . 1 2 . 2 . . . . . Core 1 | . 1 . . . . . . . . Reactor . | . . . . . . . . . . Propulsion 15 | . 4 1 3 6 1 . . . . Treads 15 | . 4 1 3 6 1 . . . . Leg . | . . . . . . . . . . Wheel . | . . . . . . . . . . Hover . | . . . . . . . . . . Flight . | . . . . . . . . . . Utility 21 | 1 3 . 1 7 1 3 1 4 . Device 11 | 1 1 . 1 3 1 1 . 3 . Storage 3 | . 1 . . 1 . 1 . . . Processor . | . . . . . . . . . . Hackware . | . . . . . . . . . . Protection 7 | . 1 . . 3 . 1 1 1 . Artifact . | . . . . . . . . . . Weapon 25 | 1 3 7 . 5 2 5 1 1 . Energy Gun 3 | . . . . . 1 1 . 1 . Energy Cannon 7 | . . 3 . 2 1 1 . . . Ballistic Gun 3 | 1 1 . . . . 1 . . . Ballistic Cannon 6 | . . 4 . 2 . . . . . Launcher 4 | . 1 . . 1 . 1 1 . . Special Weapon 1 | . 1 . . . . . . . . Impact Weapon 1 | . . . . . . 1 . . . Slashing Weapon . | . . . . . . . . . . Piercing Weapon . | . . . . . . . . . . Special Melee Weapon . | . . . . . . . . . . Unidentified Prototypes 6 | . . . . 1 1 2 . 2 . Parts Lost 15 | . 3 1 . 6 . . 3 1 1 Power 2 | . 1 . . 1 . . . . . Propulsion 5 | . 2 1 . 2 . . . . . Utility 4 | . . . . 2 . . 1 . 1 Weapon 4 | . . . . 1 . . 2 1 . Highest Loss Streak 2 | . 2 1 . 2 . . 2 1 1 To Critical Strikes 1 | . . . . . . . . . 1 Average Backups 16 | 6 10 19 19 19 16 18 17 18 19 Power . | 1 . 1 1 1 . . . . . Propulsion 1 | 4 1 1 . 1 2 2 2 3 2 Utility 7 | . 3 6 6 6 9 9 10 12 13 Weapon 5 | 1 4 10 11 10 3 5 3 1 2 Tool/Special . | . . . . . . . . . . Unused Backups 106 | . 7 4 . 5 48 20 4 5 13 Power 12 | . 1 1 . 3 5 2 . . . Propulsion 37 | . 4 . . . 22 7 . 2 2 Utility 16 | . 1 . . 1 1 6 . . 7 Weapon 39 | . 1 3 . 1 20 4 4 3 3 Tool/Special 2 | . . . . . . 1 . . 1 Average Slot Usage (%) 77 | . 98 99 83 99 64 52 52 53 53 Engine 9 | . 10 14 9 9 8 4 5 6 6 Treads 20 | . 22 27 33 44 18 1 . . . Wheel 1 | . . . . . 2 . . . . Device 12 | . 12 13 11 15 9 19 13 19 19 Storage 10 | . 14 14 9 9 9 6 6 6 6 Energy Gun 2 | . . . . . 5 . . . . Energy Cannon 6 | . . 18 18 6 3 5 9 6 7 Ballistic Gun 3 | . 27 . . . . . . . . Ballistic Cannon 5 | . . 7 . 10 7 3 . 4 4 Peak Build Rating 74 | 8 10 15 21 23 40 67 69 70 74 Average Rating 29 | 6 8 12 18 20 35 55 65 65 71 On Entrance 31 | 6 8 9 15 21 21 40 65 65 68 Naked Turns . | . . . . . . . . . . Heaviest Build 84 | 15 50 64 64 64 62 83 84 81 82 Greatest Support 109 | 20 40 40 100 100 100 99 99 99 109 Greatest Overweight (x) 2 | . 1 1 1 . 2 2 . . . Average Overweight (x) . | . . 1 . . . . . . . Largest Inventory Capacity 20 | 8 20 20 20 20 20 20 20 20 20 Average Capacity 19 | 8 16 20 20 20 20 20 20 20 20 Most Carried 20 | 8 18 20 20 20 20 20 20 20 20 Average Carried 17 | 6 10 19 19 19 16 19 17 19 19 Final Capacity 20 | 8 20 20 20 20 20 20 20 20 20 Final Carried 20 | 8 18 20 20 20 20 20 17 20 20 Scrap Engine Consumption 114 | . . . . . 76 21 6 9 2 Constructs Created 3 | . . . . . 3 . . . . Constructs Modified 52 | . . . . . 33 10 3 4 2 Class Distribution -------------------- 37% | Construct 36% | Mutant 17% | Scavenger-Mutant 8% | Commander-Construct Dominant Class ---------------- Mutant | -10/Materials Mutant | -10/Subcaves Mutant | -8/Materials Scavenger-Mutant | -8/Storage Construct | -8/Recycling Commander-Construct | -6/Factory Construct | -6/Garrison Construct | -6/Factory Construct | -6/Garrison Resources | -11 -10 -10 -8 -8 -8 -6 -6 -6 -6 ----------- Run | Yrd Mat Sub Mat Sto Rec Fac Gar Fac Gar Matter Collected 3383 | 238 586 481 60 845 202 330 451 130 60 Remotely . | . . . . . . . . . . Salvage Created 4868 | 102 720 258 106 949 758 809 771 265 130 Parts 263 | 10 45 17 8 62 43 28 34 11 5 Haulers Intercepted 9 | . 2 . . 3 2 2 . . . Recyclers Shooed 3 | . . . . . . 3 . . . Parts Field Recycled . | . . . . . . . . . . Retrieved Matter . | . . . . . . . . . . Parts Self-Destructed 3 | . . 3 . . . . . . . Prevented . | . . . . . . . . . . Kills | -11 -10 -10 -8 -8 -8 -6 -6 -6 -6 ------- Run | Yrd Mat Sub Mat Sto Rec Fac Gar Fac Gar Combat Hostiles Destroyed 88 | . 15 8 2 22 5 9 20 5 2 Guns 13 | . 12 . . . 1 . . . . Cannons 49 | . . 3 2 19 4 5 12 2 2 AOE 24 | . 3 5 . 2 . 4 8 2 . Classes Destroyed 16 | 2 5 2 1 1 2 3 . . . Worker 8 | . 2 . . . 5 . . 1 . Builder 4 | . . . . 1 3 . . . . Tunneler 4 | 2 . . . . 2 . . . . Hauler 9 | . 2 . . 3 2 2 . . . Recycler 2 | 1 . . . . . 1 . . . Watcher 4 | . 3 . . 1 . . . . . Swarmer 13 | . 3 . . 3 . 1 6 . . Grunt 37 | . 12 . . 10 . 4 8 3 . Brawler 2 | . . . . . . 1 1 . . Duelist 4 | . . . . . . 1 2 . 1 Protector 1 | . . . . . 1 . . . . Sentry 15 | . . . 2 9 . 1 . 2 1 Demolisher 1 | . . . . . 1 . . . . Hunter 4 | . . . . . . 1 3 . . Artisan 1 | . . 1 . . . . . . . Subdweller 11 | . . 8 . . 3 . . . . Best Kill Streak 7 | 2 5 3 2 5 3 5 7 3 1 Combat Bots Only 7 | . 3 3 2 5 1 4 7 3 1 Max Kills in Single Turn 3 | 1 2 2 1 2 1 2 3 3 1 Gunslinging . | . . . . . . . . . . Exploded 3 | . 1 2 . 2 . 2 3 2 . Melee . | . . . . . . . . . . Uniques/NPCs Destroyed . | . . . . . . . . . . Combat | -11 -10 -10 -8 -8 -8 -6 -6 -6 -6 -------- Run | Yrd Mat Sub Mat Sto Rec Fac Gar Fac Gar Hostile Shots Fired 417 | . 92 24 6 87 31 43 72 51 11 Missed 118 | . 12 11 2 21 12 13 18 27 2 Hits 299 | . 80 13 4 66 19 30 54 24 9 Melee 3 | . . . . . . 1 . . 2 Projectile 296 | . 80 13 4 66 19 29 54 24 7 Critical Strikes 8 | . . . . 2 1 2 1 1 1 Damage Taken 4837 | . 994 312 57 1012 373 521 1005 434 129 Core 469 | . 132 57 . 83 . 119 54 18 6 Absorbed by Shields 72 | . . . . . . 67 . 5 . Regen/Repaired (Parts) 1023 | . 38 . . 224 . 168 226 164 203 Core Remaining (%) 69 | 100 . 24 . . 84 . . . . Volleys Fired 468 | 3 78 42 2 71 114 46 78 15 19 Largest 2 | 2 2 2 2 2 2 2 2 2 2 Hottest 220 | 40 100 160 160 160 89 220 220 220 220 Shots Fired 631 | 6 141 59 4 131 125 47 81 16 21 Gun 210 | 6 126 . . . 78 . . . . Cannon 376 | . . 52 4 127 47 42 67 16 21 Launcher 37 | . 7 7 . 4 . 5 14 . . Special 8 | . 8 . . . . . . . . Kinetic 289 | 6 126 24 . 87 31 . 4 4 7 Thermal 295 | . 8 28 4 40 87 42 63 9 14 Explosive 37 | . 7 7 . 4 . 5 14 . . Electromagnetic 10 | . . . . . 7 . . 3 . Robot Hit Streak 15 | 4 12 7 5 12 15 11 6 6 4 Robot Miss Streak 4 | . 2 1 . 3 1 4 2 1 2 Penetration Max . | . . . . . . . . . . Secondary Targets 1 | . 1 . . . . . . . . Max Gunslinging Chain 1 | . 1 . . . . . . . . Shots Hit Robots 333 | 4 89 17 2 79 78 25 31 4 4 Core Hits 190 | 4 41 17 2 34 36 21 27 6 2 Critical Kills 1 | . . . . 1 . . . . . Critical Parts Destroyed 3 | . 3 . . . . . . . . Critical Strikes 15 | . 3 . . 6 6 . . . . Burn 6 | . . . . . 6 . . . . Meltdown 1 | . . . . 1 . . . . . Destroy 3 | . 3 . . . . . . . . Blast 5 | . . . . 5 . . . . . Melee Attacks . | . . . . . . . . . . Impact . | . . . . . . . . . . Slashing . | . . . . . . . . . . Piercing . | . . . . . . . . . . Sneak Attacks . | . . . . . . . . . . Combat Hostiles . | . . . . . . . . . . Follow-up Attacks . | . . . . . . . . . . Damage Inflicted 10879 | 54 1351 861 56 2109 1370 1739 2473 642 224 Guns 2165 | 54 1111 . . . 1000 . . . . Cannons 5630 | . . 298 56 1941 370 1078 1454 209 224 Explosions 3054 | . 210 563 . 168 . 661 1019 433 . Melee . | . . . . . . . . . . Ramming 6 | . 6 . . . . . . . . Kinetic 3226 | 54 1111 134 . 1229 185 . 213 108 192 Thermal 4492 | . 24 164 56 712 1185 1078 1241 . 32 Explosive 3054 | . 210 563 . 168 . 661 1019 433 . Electromagnetic 101 | . . . . . . . . 101 . Impact . | . . . . . . . . . . Slashing . | . . . . . . . . . . Piercing . | . . . . . . . . . . Highest Corruption . | . . . . . . . . . . Average Corruption . | . . . . . . . . . . Corruption Purged . | . . . . . . . . . . Corruption Blocked . | . . . . . . . . . . Overload Shots . | . . . . . . . . . . Overflow Damage 334 | . 15 . . 39 . 164 86 30 . Projectiles 190 | . . . . 14 . 88 67 21 . Explosions 144 | . 15 . . 25 . 76 19 9 . Melee . | . . . . . . . . . . Knockbacks 20 | . . 3 . 13 3 . 1 . . Impact . | . . . . . . . . . . Kinetic 18 | . . 3 . 11 3 . 1 . . Secondary 2 | . . . . 2 . . . . . Self-Inflicted Damage 393 | . 24 39 . 49 . 23 46 212 . Shots 13 | . 1 3 . 3 . 1 2 3 . Rammed 2 | . 2 . . . . . . . . Targets Rammed 2 | . 2 . . . . . . . . Kicked . | . . . . . . . . . . Crushed . | . . . . . . . . . . Highest Temperature 334 | . 56 54 105 333 120 334 306 276 214 Average Temperature 71 | . 11 31 56 124 17 107 97 72 48 Received Heat Transfer 1525 | . 483 51 18 459 81 106 252 63 12 Effects 4 | . . . . . . . 4 . . Interference 4 | . . . . . . . 4 . . Siege Activations . | . . . . . . . . . . Martial Activations . | . . . . . . . . . . Shielding Activations . | . . . . . . . . . . Robots Disrupted . | . . . . . . . . . . Combat Hostiles . | . . . . . . . . . . Robots Corrupted 1 | . . . . . . . . 1 . Combat Hostiles 1 | . . . . . . . . 1 . Parts Fried . | . . . . . . . . . . Impact Corruptions . | . . . . . . . . . . Robots Melted 1 | . . . . 1 . . . . . Combat Hostiles 1 | . . . . 1 . . . . . Parts Melted 8 | . . . . 4 4 . . . . Heat Transferred 6057 | . 50 222 74 925 3164 864 708 . 50 Parts Sabotaged . | . . . . . . . . . . Parts Stolen . | . . . . . . . . . . Parts Stripped . | . . . . . . . . . . Power Chain Reactions . | . . . . . . . . . . Alert | -11 -10 -10 -8 -8 -8 -6 -6 -6 -6 ------- Run | Yrd Mat Sub Mat Sto Rec Fac Gar Fac Gar Maximum Alert Level 3 | . . . . 1 . 1 3 3 3 Low Security (%) 79 | 100 100 . 100 40 100 87 1 . . Level 1 9 | . . . . 59 . 12 22 . . Level 2 3 | . . . . . . . 23 44 21 Level 3 7 | . . . . . . . 52 55 78 Level 4 . | . . . . . . . . . . Level 5 . | . . . . . . . . . . High Security . | . . . . . . . . . . Max Security . | . . . . . . . . . . Peak Influence 1049 | 10 171 . 52 313 109 227 1049 903 786 Initial 591 | . . . . 9 109 205 123 550 591 Average 137 | 2 86 . 15 186 8 124 666 720 729 Influence Increases 4428 | 15 622 . 62 829 289 781 956 679 195 Destroy 0b10 Robot/C 1720 | . 300 . 40 440 20 260 400 220 40 Destroy 0b10 Robot/NC 210 | 15 35 . . 25 110 20 . 5 . Destroy Leader 404 | . 80 . 20 138 . 66 40 60 . Allied During Kill 162 | . . . . . 4 123 . 35 . Successful Hack 161 | . 23 . . 40 28 24 . 46 . Select Force Hacks 150 | . 30 . . . 120 . . . . Disable Machine 285 | . . . . 30 . 45 45 165 . Anti-Garrison Action 300 | . . . . . . . 200 . 100 Destroy Structure 476 | . 49 . 2 51 7 28 181 103 55 Advance Influence 200 | . . . . . . 200 . . . Partial Spotted 15 | . . . . . . . . 15 . Lose Combat Pursuer 345 | . 105 . . 105 . 15 90 30 . Influence Decreases 3652 | 15 470 152 40 569 557 619 83 883 264 Entered New Map 1075 | . . 74 . 13 173 9 53 499 254 Time Decay 2137 | 15 440 78 40 496 364 410 . 294 . Lost Part 140 | . 30 . . 60 . . 30 10 10 Lost Ally 300 | . . . . . 20 200 . 80 . Squads Dispatched 19 | . 4 . . 3 . 5 . 7 . Investigation 4 | . 2 . . . . . . 2 . Extermination 4 | . . . . . . 2 . 2 . Reinforcement 8 | . 2 . . 3 . 2 . 1 . Assault 2 | . . . . . . . . 2 . Garrison 1 | . . . . . . 1 . . . Intercept . | . . . . . . . . . . Searches Triggered . | . . . . . . . . . . Construction Impeded 2 | . . . . 1 . 1 . . . Haulers Reinforced . | . . . . . . . . . . Active Scanning Responses . | . . . . . . . . . . Cargo Convoy Interrupts . | . . . . . . . . . . Stealth | -11 -10 -10 -8 -8 -8 -6 -6 -6 -6 --------- Run | Yrd Mat Sub Mat Sto Rec Fac Gar Fac Gar Distress Signals 7 | . 1 . . 2 1 3 . . . Communications Jammed . | . . . . . . . . . . Distress Signals . | . . . . . . . . . . Times Spotted 134 | . 28 8 2 31 11 16 19 15 4 Peak Tracking Total 6 | . 4 3 3 5 2 4 6 4 3 Tactical Retreats 23 | . 6 . . 3 4 1 3 5 1 Traps | -11 -10 -10 -8 -8 -8 -6 -6 -6 -6 ------- Run | Yrd Mat Sub Mat Sto Rec Fac Gar Fac Gar Traps Triggered 7 | . 1 . . . . 2 2 1 1 Indirectly . | . . . . . . . . . . Trap Hack Attempts . | . . . . . . . . . . Triggered . | . . . . . . . . . . Disarmed . | . . . . . . . . . . Reprogrammed . | . . . . . . . . . . Reused . | . . . . . . . . . . Traps Extracted . | . . . . . . . . . . Installed . | . . . . . . . . . . Triggered . | . . . . . . . . . . Machines | -11 -10 -10 -8 -8 -8 -6 -6 -6 -6 ---------- Run | Yrd Mat Sub Mat Sto Rec Fac Gar Fac Gar Machines Disabled 27 | . . . . 2 . 3 8 11 3 Max in Single Turn 5 | . . . . 1 . 2 2 5 2 Garrison Access 1 | . . . . 1 . . . . . Garrison Relay 4 | . . . . . . . 3 . 1 Phase Generator 2 | . . . . . . . 1 . 1 Machines Repaired . | . . . . . . . . . . Machines Dismantled . | . . . . . . . . . . Machines Sabotaged . | . . . . . . . . . . Overloaded Fab Kills . | . . . . . . . . . . Hacking | -11 -10 -10 -8 -8 -8 -6 -6 -6 -6 --------- Run | Yrd Mat Sub Mat Sto Rec Fac Gar Fac Gar Machines Accessed 48 | . 8 1 . 13 12 6 . 8 . Terminals 26 | . 6 . . 9 6 3 . 2 . Fabricators 2 | . . . . . . . . 2 . Repair Stations 3 | . 1 . . 2 . . . . . Recycling Units 10 | . 1 . . 1 5 2 . 1 . Scanalyzers 2 | . . . . . . . . 2 . Garrison Access 3 | . . . . 1 . 1 . 1 . Total Hacks 131 | . 27 4 . 32 40 11 . 17 . Successful 82 | . 16 4 . 21 27 6 . 8 . Failed 49 | . 11 . . 11 13 5 . 9 . Catastrophic 5 | . 1 . . 1 2 1 . . . Database Lockouts . | . . . . . . . . . . Manual 69 | . 23 . . 12 25 6 . 3 . Terminals 79 | . 23 . . 22 21 8 . 5 . Fabricators 3 | . . . . . . . . 3 . Repair Stations 8 | . 2 . . 6 . . . . . Recycling Units 24 | . 2 . . 2 17 2 . 1 . Scanalyzers 6 | . . . . . . . . 6 . Garrison Access 5 | . . . . 2 . 1 . 2 . Terminal Hacks 29 | . 4 4 . 9 10 2 . . . Record 4 | . . 4 . . . . . . . Robot Analysis 3 | . . . . 1 2 . . . . Prototype ID Bank 2 | . . . . . 2 . . . . Open Door 4 | . . . . 4 . . . . . Terminal Index 1 | . 1 . . . . . . . . Recycling Unit Index 1 | . 1 . . . . . . . . Alert Level 2 | . . . . . 1 1 . . . Locate Traps 3 | . 1 . . 1 1 . . . . Recall Reinforcements 1 | . . . . 1 . . . . . Zone Layout 6 | . 1 . . 2 2 1 . . . Release Object 2 | . . . . . 2 . . . . Fabricator Hacks 2 | . . . . . . . . 2 . Network Status 1 | . . . . . . . . 1 . Build 1 | . . . . . . . . 1 . Repair Station Hacks 8 | . 2 . . 6 . . . . . Scan Component 4 | . 1 . . 3 . . . . . Repair 4 | . 1 . . 3 . . . . . Recycling Unit Hacks 7 | . 1 . . . 5 1 . . . Retrieve Components 7 | . 1 . . . 5 1 . . . Scanalyzer 3 | . . . . . . . . 3 . Insert Component 2 | . . . . . . . . 2 . Analyze 1 | . . . . . . . . 1 . Garrison Access Hacks 3 | . . . . 1 . 1 . 1 . Unlock Access 2 | . . . . . . 1 . 1 . Seal Access 1 | . . . . 1 . . . . . Unauthorized Hacks 30 | . 9 . . 5 12 2 . 2 . Terminals 23 | . 8 . . 5 6 2 . 2 . Botnet 7 | . 1 . . 1 1 2 . 2 . Operators 1 | . 1 . . . . . . . . Skim 15 | . 6 . . 4 5 . . . . Fabricators . | . . . . . . . . . . Repair Stations . | . . . . . . . . . . Recycling Units 7 | . 1 . . . 6 . . . . Reject 1 | . . . . . 1 . . . . Mask 1 | . . . . . 1 . . . . Tunnel 5 | . 1 . . . 4 . . . . Scanalyzers . | . . . . . . . . . . Garrison Access . | . . . . . . . . . . Data Cores Recovered . | . . . . . . . . . . Used . | . . . . . . . . . . Hacking Detections 38 | . 6 . . 9 10 5 . 8 . Full Trace Events . | . . . . . . . . . . Feedback Events . | . . . . . . . . . . Feedback Blocked . | . . . . . . . . . . Robot Schematics Acquired . | . . . . . . . . . . Robots Built . | . . . . . . . . . . Authchips . | . . . . . . . . . . Time . | . . . . . . . . . . Total Robot Build Rating . | . . . . . . . . . . Part Schematics Acquired 1 | . . . . . . . . 1 . Parts Built 1 | . . . . . . . . 1 . Authchips . | . . . . . . . . . . Time 128 | . . . . . . . . 128 . Total Part Build Rating 8 | . . . . . . . . 8 . Parts Repaired 4 | . 1 . . 3 . . . . . Time 122 | . 26 . . 96 . . . . . Parts Recycled . | . . . . . . . . . . Recycled Matter . | . . . . . . . . . . Retrieved Matter . | . . . . . . . . . . Retrieved Components 10 | . 3 . . . 4 3 . . . Parts Scanalyzed 1 | . . . . . . . . 1 . Part Schematics Acquired 1 | . . . . . . . . 1 . Parts Damaged 1 | . . . . . . . . 1 . Bothacking | -11 -10 -10 -8 -8 -8 -6 -6 -6 -6 ------------ Run | Yrd Mat Sub Mat Sto Rec Fac Gar Fac Gar Used RIF Installer . | . . . . . . . . . . Robots Hacked . | . . . . . . . . . . Non-combat . | . . . . . . . . . . Combat . | . . . . . . . . . . Robot Hacks Applied . | . . . . . . . . . . Relay Couplers Released 16 | . . . . . . . 12 . 4 Machine Destruction 16 | . . . . . . . 12 . 4 Fabnet Peak Effective % . | . . . . . . . . . . Robots Rewired 20 | . . . . . 17 . 3 . . Allies Hacked 2 | . . . . . . 1 . 1 . Hacks Repelled . | . . . . . . . . . . Allies | -11 -10 -10 -8 -8 -8 -6 -6 -6 -6 -------- Run | Yrd Mat Sub Mat Sto Rec Fac Gar Fac Gar Total Allies 20 | . . . . . 17 . 3 . . Largest Group 16 | . . . . . 16 16 3 3 . Highest-Rated Group 297 | . . . . . 297 297 129 129 . Highest-Rated Ally 43 | . . . . . 27 27 43 43 . Initial Warlord ECA Mod 8 | . . . . . . . . 4 4 Total Orders 2 | . . . . . . . . 2 . EXPLORE 2 | . . . . . . . . 2 . Ally Attacks 84 | . . . . . 1 55 . 28 . Total Damage 1760 | . . . . . 18 1040 . 702 . Kills 15 | . . . . . 1 8 . 6 . Allies Corrupted . | . . . . . . . . . . Allies Melted . | . . . . . . . . . . Intel | -11 -10 -10 -8 -8 -8 -6 -6 -6 -6 ------- Run | Yrd Mat Sub Mat Sto Rec Fac Gar Fac Gar Active Infowar (turns) 9587 | 8 2023 2933 166 1467 568 922 552 640 308 Terrain 461 | . . . 88 373 . . . . . Structural 1574 | . . . . 55 . 911 . 461 147 Seismic 9471 | 8 2023 2933 118 1412 568 916 552 633 308 ECM 149 | . . . . . . . . 63 86 Robot Analysis Total 3 | . . . . 1 2 . . . . Derelict Logs Recovered 1 | . . 1 . . . . . . . Drone Launches 2 | . . . . . . . . 2 . Drone Recoveries . | . . . . . . . . . . Exploration | -11 -10 -10 -8 -8 -8 -6 -6 -6 -6 ------------- Run | Yrd Mat Sub Mat Sto Rec Fac Gar Fac Gar Turns Passed 16528 | 70 2254 3050 166 1749 6598 995 667 649 330 Spaces Moved 8566 | 15 690 1012 58 801 3196 968 587 978 261 Core . | . . . . . . . . . . Treads 4583 | . 583 1012 58 801 1986 143 . . . Legs 126 | 15 107 . . . 4 . . . . Wheels 1206 | . . . . . 1206 . . . . Hover 2651 | . . . . . . 825 587 978 261 Flight . | . . . . . . . . . . Fastest Speed 49 | 120 120 240 160 160 104 49 49 49 49 Average Speed 135 | 120 209 240 201 160 142 76 49 49 96 Slowest Speed 240 | 120 240 240 240 160 188 188 49 49 134 Overloaded Moves . | . . . . . . . . . . Propulsion Burnouts . | . . . . . . . . . . Robots Hopped . | . . . . . . . . . . Potential Cave-ins . | . . . . . . . . . . Cave-ins Triggered . | . . . . . . . . . . Exploration Rate (%) 49 | 2 97 55 3 96 99 32 58 25 25 Regions Visited 9 Branch Regions 3 Pre-discovered Areas 9 | . 2 2 . . 5 . . . . Known Exits Taken 6 | . 1 . 1 1 1 1 . 1 . Unknown Exits Taken 2 | 1 . 1 . . . . . . . Scrap Searched 8 | . . 8 . . . . . . . Spaces Dug 132 | . 6 12 . 20 4 9 22 58 1 Terrain Destroyed 546 | . 47 24 2 51 7 27 182 121 85 Melee . | . . . . . . . . . . Projectile 80 | . 7 2 2 23 7 15 11 10 3 AOE 466 | . 40 22 . 28 . 12 171 111 82 Terrain Rammed . | . . . . . . . . . . Walls Destroyed . | . . . . . . . . . . Machines Disabled . | . . . . . . . . . . Actions | -11 -10 -10 -8 -8 -8 -6 -6 -6 -6 --------- Run | Yrd Mat Sub Mat Sto Rec Fac Gar Fac Gar Total 12857 | 60 1341 1571 101 1134 5148 1183 873 1130 316 Wait 3126 | 39 516 469 34 187 1517 89 151 99 25 Move 8558 | 14 689 1011 57 800 3195 968 585 978 261 Hop . | . . . . . . . . . . Pick Up 160 | 2 19 13 2 16 61 29 5 10 3 Fast Attach 20 | 1 2 1 2 5 2 4 . 3 . Attach 23 | . 8 1 2 5 . 4 3 . . Detach 18 | . 4 1 . . 10 2 . 1 . Swap 120 | 1 14 21 2 30 3 10 22 11 6 Drop 160 | . 9 12 . 20 71 31 4 11 2 Fire 468 | 3 78 42 2 71 114 46 78 15 19 Melee . | . . . . . . . . . . Ram . | . . . . . . . . . . Kick . | . . . . . . . . . . Crush 2 | . 2 . . . . . . . . Escape Stasis 10 | . . . . . . . 8 2 . Rewire 192 | . . . . . 175 . 17 . . Trap . | . . . . . . . . . . Miscellaneous . | . . . . . . . . . . Route ------- -11/Scrapyard -10/Materials (discovered 6 exits: *Mat x3 / *Min x2 / *Sub) -10/Subcaves (discovered 2 exits: [*Mat x2]) -8/Materials (discovered 3 exits: Fac x2 / *Sto) -8/Storage (discovered 2 exits: *Fac / *Rec) -8/Recycling -6/Factory (discovered 4 exits: [*Fac] / *Low x2 / Gar) -6/Garrison (discovered 2 exits: *Fac x2) -6/Factory (discovered 3 exits: [*Fac] / *Low / Gar) -6/Garrison History --------- Turn | Location | Event 9 | -11/Scrapyard | Discovered new exit (range 3) 71 | -11/Scrapyard | Entered Materials 309 | -10/Materials | Build established: Mutant 751 | -10/Materials | Repaired Lgt. Treads 932 | -10/Materials | Discovered new exit (range 7) 1356 | -10/Materials | Discovered new exit (range 15) 1645 | -10/Materials | Discovered new exit (range 9) 1937 | -10/Materials | Learned Storage trap positions 1975 | -10/Materials | Identified exit to Mines 1975 | -10/Materials | Identified exit to Materials 2003 | -10/Materials | Learned location of Recycling (-8) 2021 | -10/Materials | Learned location of 3 exits from Materials 2031 | -10/Materials | Identified exit to Subcaves 2079 | -10/Materials | Learned location of 1 exit from Storage 2119 | -10/Materials | Core integrity fell below 50% 2325 | -10/Materials | Entered Subcaves 2326 | -10/Subcaves | Approached by a straggling Scientist 2340 | -10/Subcaves | Learned location of Zion (-7) 2902 | -10/Subcaves | Shifting Twisted Machinery released Mak. Laser 2906 | -10/Subcaves | Shifting Twisted Machinery released Mak. System Restoration Module 3334 | -10/Subcaves | Ambushed by Subdweller buried in earth 3878 | -10/Subcaves | Discovered new exit (range 15) 4747 | -10/Subcaves | A swath of the cavern ceiling suddenly collapsed 5052 | -10/Subcaves | Visited Clippyterm 5059 | -10/Subcaves | Learned location of Section 7 (-2) 5059 | -10/Subcaves | Learned Research machine intel 5201 | -10/Subcaves | Discovered new exit (range 8) 5261 | -10/Subcaves | Ambushed by angry Subdweller bent on revenge 5375 | -10/Subcaves | Entered Materials 5375 | -8/Materials | Evolved 4 slots: Propulsion x3, Utility x1 5376 | -8/Materials | Identified exit to Factory 5376 | -8/Materials | Identified exit to Storage 5541 | -8/Materials | Entered Storage 5542 | -8/Storage | Identified exit to Recycling 5543 | -8/Storage | Loaded intel: 22 trap records 5596 | -8/Storage | Repaired Lgt. Armor Plating 5623 | -8/Storage | Repaired Lgt. Treads 5794 | -8/Storage | Build established: Scavenger-Mutant 5872 | -8/Storage | Repaired Broken Sub. Beam Cannon 5967 | -8/Storage | Used back door to open Recycling access 6342 | -8/Storage | Discovered exit to Factory (range 15) 7290 | -8/Storage | Entered Recycling 7841 | -8/Recycling | Learned 8 Factory zone layouts 7854 | -8/Recycling | Entered Scraplab 7863 | -8/Recycling | Found Prototype Device 7863 | -8/Recycling | Identified Scrap Engine 7923 | -8/Recycling | Learned location of 1 exit from Lower Caves 7993 | -8/Recycling | Learned location of 2 exits from Lower Caves 8105 | -8/Recycling | Learned location of 1 exit from Lower Caves 8146 | -8/Recycling | Learned Factory terminal intel 8223 | -8/Recycling | Learned Factory security intel 8279 | -8/Recycling | Learned location of Storage (-8) 8344 | -8/Recycling | Identified exit to Factory 8857 | -8/Recycling | Build established: Mutant 9228 | -8/Recycling | Build established: Construct 13505 | -8/Recycling | Build established: Commander-Construct 13888 | -8/Recycling | Entered Factory 13888 | -6/Factory | Accompanied by 16 allies 13888 | -6/Factory | Evolved 4 slots: Power x1, Utility x2, Weapon x1 13889 | -6/Factory | Identified exit to Lower Caves 13892 | -6/Factory | Loaded intel: 26 terminal locations 14425 | -6/Factory | Discovered new exit (range 6) 14740 | -6/Factory | Spotted B-75 Beast 14800 | -6/Factory | Garrison activated, responded to threat 14883 | -6/Factory | Identified exit to Garrison 14883 | -6/Factory | Entered Garrison 14890 | -6/Garrison | Triggered checkpoint 14919 | -6/Garrison | Build established: Construct 14943 | -6/Garrison | Garrison Relay disabled 15047 | -6/Garrison | Triggered checkpoint 15049 | -6/Garrison | Triggered checkpoint 15049 | -6/Garrison | Triggered checkpoint 15116 | -6/Garrison | Destroyed 7 combat bots 15287 | -6/Garrison | Garrison Relay disabled 15293 | -6/Garrison | Triggered checkpoint 15301 | -6/Garrison | Discovered new exit (range 8) 15307 | -6/Garrison | Attempted to access garrison exit controls, blocked by remote lockdown 15380 | -6/Garrison | Triggered checkpoint 15421 | -6/Garrison | Garrison Relay disabled 15465 | -6/Garrison | Phase Generator disabled 15501 | -6/Garrison | Triggered checkpoint 15531 | -6/Garrison | Discovered new exit (range 3) 15550 | -6/Garrison | Entered Factory 15550 | -6/Factory | Accompanied by 3 allies 15716 | -6/Factory | Fabricated Imp. Heavy Siege Treads? 15874 | -6/Factory | Spotted B-75 Beast 15900 | -6/Factory | First assault squad dispatched 16091 | -6/Factory | Discovered exit to Lower Caves (range 12) 16180 | -6/Factory | Discovered new exit (range 13) 16199 | -6/Factory | Identified exit to Garrison 16199 | -6/Factory | Entered Garrison 16269 | -6/Garrison | Phase Generator disabled 16287 | -6/Garrison | Garrison Relay disabled 16295 | -6/Garrison | Triggered checkpoint 16366 | -6/Garrison | Spotted B-75 Beast 16529 | -6/Garrison | Self-destructed Last Messages --------------- relay unit. 16287_ Relay Coupler [Grunt] tumbles out of relay unit. 16287_ Relay Coupler [Brawler] tumbles out of relay unit. 16287_ Relay Coupler [Cutter] tumbles out of relay unit. 16289_ The unstable cave ceiling collapses. 16295_ Beams of light sweep through the air. An alarm sounds. 16306_ Scrap Engine modifies Hovering Gravmag Exoskeleton: Time/Move +85, Support +10, Max Integrity +74. 16365_ Triggered Alarm Trap. 16365_ An alarm sounds. 16411_ The unstable cave ceiling collapses. 16520_ L-41 Fighter destroyed. 16529_ Critical hit (Smash). 16529_ Scrap Engine destroyed. 16529_ System corrupted by crushing effect (+3). Map ----- +----------------------------------------------------+ | ?????????????????????????????????????????????????? | | ?????????????????????????????????????????????????? | | ?????????????????????????????????????????????????? | | ?????????????????????????????????????????????????? | | ?????????????????????????????????????????????????? | | ?????????????????????????????????????????????????? | | ?????????????????????????????????????????????????? | | ?????????????????????????????????????????????????? | | ?????????????????????????????????????????????????? | | ?????????????????????????????????????????????????? | | ?????????????????????????????????????????????????? | | ?????????????????????????????????????????????????? | | ?????????????????????????????????????????????????? | | ?????????????????????????????????????????????????? | | ?????????????????????????????????????????????????? | | ?????????????????????????????????????????????????? | | ?????????????????????????????????????????????????? | | ?????????????????????????????????????????????????? | | ?????????????????????????????????????????????????? | | ????????????????## ????????????????????????????? | | ????????????????## ????????????????????????????? | | ???????????????? ? ###???????????????????????? | | ????????????????? " #####?????????????????????? | | ????????????????? " #;###?????????###?????????? | | ?????????????? ? "!%b ##?????????###?????????? | | ??????????????? ## ###;@##???????## ####???????? | | ??????????????? ## #### ########?## ####???????? | | ??????????? #### ########? ! !!##???????? | | ??????????? ###!! !!##???????? | | ??????????? ########## ### ##???????? | | ????????????????## ########## + + ???????? | | ????????????????## ##??????## ### ##???????? | | ????????????????## ##??????## ###!! !!##???????? | | ????????????????## ##??????## ##? ! !!##???????? | | ????????????????## ########## ##?## ####???????? | | ????????????????## ########## ##?## ####???????? | | ????????????????## ##???###?????????? | | ????????????????## ###### ### ##???###?????????? | | ????????????????## ###### ### ##???????????????? | | ????????????????## ###### ### ########### ###??? | | ????????????????## # ### ### ########### ###### | | ????????????????## | | ????????????????## | | ????????????????## % | | ????????????????###### ##" ### ########### ###### | | ????????????????###### ##" ### ###############??? | | ????????????????????## "#" ### ###???????????#### | | ????????????????????## "#" ### ###?????????### | | ????????????????????## ##" ## ########???# ## | | ????????????????????## ##" "# ########???# # # | +----------------------------------------------------+ Best States ------------- Heat Dissipation 59 Energy Generation 21 Energy Capacity 527 Matter Stores 300 Matter Capacity 300 Sight Range 16 Terrain Scan Range 16 Terrain Scan Density 10 ECM Strength 1 Armor Coverage 225 Resistance: KI 20 Utility Shielding 66 Evasion (%) 55 Recoil Reduction 5 Item Schematics ----------------- Imp. Heavy Siege Treads | -6/Factory | Scanalyzed Robot Schematics ------------------ None Fabricated ------------ Imp. Heavy Siege Treads | x1 | -6/Factory | Preloaded Repaired ---------- Lgt. Treads | 72% | -10/Materials Lgt. Armor Plating | 8% | -8/Storage Lgt. Treads | 16% | -8/Storage Sub. Beam Cannon | 75% | -8/Storage | Broken Alien Tech Used ----------------- None Achievements -------------- None Challenges ------------ None Game ------ Seed OvertunedTechRefractor Manual? 0 Play Time 01:52:44 Cumulative 497.5 hours Start 2025.06.27 @ 12:43:25 End 2025.06.27 @ 15:39:06 Sessions 1 Manual Loads 0 Difficulty Rogue Special Mode None Game No. 264 Rogue 201 Adventurer 63 Explorer 0 Win Type - Total 9 Types 8/0/0/1/0/0/0/0/0/0 Lore% 90 Gallery% 81 Achievement% 67 Wizard Run 0 Options --------- Layout 1 ASCII 0 Keyboard 1 Movement Numpad Keybinds 0 Fullscreen 1 Font 24/Terminus Map View 50x35 Zoom Use 0% Tactical HUD 1 Map Filters NONE Filters NONE Steam 1 RUN: 163409be-800a-48ce-9f7a-b43b6dc8dd6d